bitfinex-derivatives/quotes_BTCF0:USTF0_20250506
["timestamp","ask_amount","ask_price","bid_price","bid_amount"]
[1746558926433,0.001,95106.0,95105.0,1.30379984]
[1746558926629,0.001,95136.0,95105.0,1.84864343]
[1746558926937,0.001,95136.0,95134.0,0.2102402]
[1746558926938,0.2628024,95135.0,95134.0,0.2102402]
[1746558927236,0.2628024,95135.0,95134.0,0.7216]
[1746558927437,0.2958024,95135.0,95134.0,0.87990336]
[1746558927633,0.2958024,95135.0,95134.0,0.94130336]
[1746558927833,0.3265024,95135.0,95134.0,0.94130336]
[1746558928232,0.4137024,95135.0,95134.0,0.91050336]
[1746558934445,0.3265024,95135.0,95134.0,0.91050336]
[1746558934647,0.4135824,95135.0,95134.0,0.91050336]
[1746558946251,0.3265024,95135.0,95134.0,0.91050336]
[1746558947246,0.3265024,95135.0,95134.0,1.12074356]
[1746558947247,0.2102429,95135.0,95134.0,1.12074356]
[1746558949943,0.2425429,95135.0,95134.0,1.12074356]
[1746558950143,0.2425429,95135.0,95134.0,0.91050336]
[1746558950747,0.2425429,95135.0,95134.0,0.94310336]
[1746558952858,0.2425429,95135.0,95134.0,1.15334356]
[1746558954956,0.2425429,95135.0,95134.0,0.94310336]
[1746558955350,0.2728429,95135.0,95134.0,0.94310336]
[1746558956550,0.2728429,95135.0,95134.0,0.91050336]
[1746558959565,0.2728429,95135.0,95134.0,0.54970336]
[1746558977863,0.3592829,95135.0,95134.0,0.54970336]
[1746558988266,0.3592829,95135.0,95134.0,0.57980336]
[1746558990373,0.4331829,95135.0,95134.0,0.57980336]
[1746558991282,0.3467429,95135.0,95134.0,0.79004356]
[1746558991484,0.3703829,95135.0,95134.0,0.79004356]
[1746558994284,0.3703829,95135.0,95134.0,0.57980336]
[1746558994474,0.4018829,95135.0,95134.0,0.57980336]
[1746558998592,0.4018829,95135.0,95134.0,0.79004356]
[1746558999890,0.3703829,95135.0,95134.0,0.79004356]
[1746559003396,0.0739,95135.0,95134.0,0.79004356]
[1746559003577,0.284138,95135.0,95134.0,0.79004356]
[1746559017800,0.314638,95135.0,95134.0,0.79004356]
[1746559019401,0.314638,95135.0,95134.0,0.57980336]
[1746559019806,0.314638,95135.0,95134.0,0.54970336]
[1746559021508,0.284138,95135.0,95134.0,0.75994356]
[1746559022005,0.0739,95135.0,95134.0,0.89994356]
[1746559022201,0.284138,95135.0,95134.0,0.89994356]
[1746559022506,0.0739,95135.0,95134.0,0.75994356]
[1746559022692,0.0739,95135.0,95134.0,0.91994356]
[1746559026706,0.0739,95135.0,95134.0,1.02505956]
[1746559026895,0.0739,95135.0,95134.0,1.18505956]
[1746559027100,0.0739,95135.0,95134.0,1.42505956]
[1746559027499,0.2102171,95145.0,95140.0,0.0525565]
[1746559027706,0.2102171,95145.0,95144.0,0.5710137]
[1746559028108,0.2102171,95145.0,95144.0,0.72905116]
[1746559028608,0.2102171,95145.0,95144.0,0.79125116]
[1746559030012,0.0015,95150.0,95149.0,0.2102071]
[1746559030208,0.0015,95150.0,95149.0,0.7110071]
[1746559030505,0.2117049,95150.0,95149.0,0.5710071]
[1746559030810,0.2117049,95150.0,95149.0,1.15816011]
[1746559032309,0.2117049,95150.0,95149.0,0.72816011]
[1746559032608,0.2423049,95150.0,95149.0,0.72816011]
[1746559033212,0.2423049,95150.0,95149.0,0.60367301]
[1746559033412,0.2740049,95150.0,95149.0,0.60367301]
[1746559034004,0.2740049,95150.0,95149.0,0.66687301]
[1746559035128,0.2740049,95150.0,95149.0,0.87708011]
[1746559039009,0.2740049,95150.0,95149.0,0.66687301]
[1746559039210,0.2740049,95150.0,95149.0,0.87708011]
[1746559042819,0.2740049,95150.0,95149.0,0.79136011]
[1746559043024,0.2740049,95150.0,95149.0,0.87708011]
[1746559047020,0.2740049,95150.0,95149.0,0.79136011]
[1746559047225,0.2740049,95150.0,95149.0,0.51795301]
[1746559047721,0.3594849,95150.0,95149.0,0.72816011]
[1746559048519,0.3594849,95150.0,95149.0,0.75856011]
[1746559053540,0.3594849,95150.0,95149.0,0.54835301]
[1746559053743,0.35963163,95150.0,95149.0,0.75856011]
[1746559055541,0.35963163,95150.0,95149.0,0.54835301]
[1746559055741,0.35963163,95150.0,95149.0,0.75856011]
[1746559055943,0.35963163,95150.0,95149.0,0.54835301]
[1746559056142,0.35963163,95150.0,95149.0,0.75856011]
[1746559060048,0.35963163,95150.0,95149.0,0.54835301]
[1746559060345,0.35963163,95150.0,95149.0,0.75856011]
[1746559064544,0.35963163,95150.0,95149.0,0.51795301]
[1746559066147,0.35963163,95150.0,95149.0,0.3608]
[1746559070452,0.27415163,95150.0,95149.0,0.3608]
[1746559070638,0.35935163,95150.0,95149.0,0.3608]
[1746559071857,0.27415163,95150.0,95149.0,0.3608]
[1746559072151,0.35935163,95150.0,95149.0,0.3608]
[1746559080751,0.24245163,95150.0,95149.0,0.3608]
[1746559080952,0.32753163,95150.0,95149.0,0.3608]
[1746559081447,0.36033163,95150.0,95149.0,0.3608]
[1746559084559,0.36029163,95150.0,95149.0,0.3608]
[1746559087361,0.2102292,95139.0,95138.0,0.3608]
[1746559087768,0.2102292,95139.0,95138.0,0.51895795]
[1746559088766,0.2408292,95139.0,95138.0,0.51895795]
[1746559089668,0.2408292,95139.0,95138.0,0.3608]
[1746559090567,0.2102336,95137.0,95136.0,0.0324]
[1746559090768,0.2102513,95129.0,95128.0,0.0301]
[1746559090971,0.2952113,95129.0,95128.0,0.0626]
[1746559091173,0.2952113,95129.0,95128.0,0.22088127]
[1746559091467,0.2952113,95129.0,95128.0,0.19078127]
[1746559091667,0.3596113,95129.0,95128.0,0.0325]
[1746559092461,0.2102535,95128.0,95127.0,0.00786513]
[1746559092661,0.2102557,95127.0,95120.0,0.0325]
[1746559092871,0.2746557,95127.0,95120.0,0.0325]
[1746559093066,0.2746557,95127.0,95121.0,0.0301]
[1746559093672,0.2746557,95127.0,95126.0,0.36856892]
[1746559094874,0.2951757,95127.0,95126.0,0.36856892]
[1746559097063,0.2951757,95127.0,95126.0,0.39926892]
[1746559100073,0.3576757,95127.0,95126.0,0.39926892]
[1746559104167,0.3576757,95127.0,95126.0,0.03846892]
[1746559114381,0.2727557,95127.0,95126.0,0.03846892]
[1746559114584,0.3574757,95127.0,95126.0,0.03846892]
[1746559116578,0.2949757,95127.0,95126.0,0.03846892]
[1746559116884,0.2102557,95127.0,95126.0,0.03846892]
[1746559117082,0.2949357,95127.0,95126.0,0.03846892]
[1746559122375,0.2949357,95127.0,95126.0,0.07066892]
[1746559125183,0.2949357,95127.0,95126.0,0.03846892]
[1746559137705,0.2949357,95127.0,95126.0,0.00776892]
[1746559137899,0.2102734,95119.0,95118.0,0.062]
[1746559138303,0.2102734,95119.0,95118.0,0.21999096]
[1746559141209,0.2102734,95119.0,95118.0,0.22778342]
[1746559142907,0.2433734,95119.0,95118.0,0.22778342]
[1746559146209,0.2433734,95119.0,95118.0,0.00779246]
[1746559146406,0.2102756,95118.0,95117.0,0.3608]
[1746559146599,0.2422756,95118.0,95117.0,0.3608]
[1746559149711,0.2103021,95106.0,95098.0,0.3608]
[1746559149913,0.2946221,95106.0,95099.0,0.0301]
[1746559150111,0.2946221,95106.0,95105.0,0.51989029]
[1746559150311,0.2946221,95106.0,95105.0,0.52795942]
[1746559150508,0.3263221,95106.0,95105.0,0.52795942]
[1746559151215,0.3263221,95106.0,95105.0,0.16715942]
[1746559151418,0.3567821,95106.0,95105.0,0.16715942]
[1746559153516,0.3567821,95106.0,95105.0,0.00105146]
[1746559153716,0.36714402,95106.0,95105.0,0.00105146]
[1746559154704,0.3567821,95106.0,95105.0,0.00105146]
[1746559169421,0.3567821,95106.0,95105.0,0.03245146]
[1746559171623,0.2725021,95106.0,95105.0,0.03245146]
[1746559171932,0.3565821,95106.0,95105.0,0.03245146]
[1746559180431,0.210311,95102.0,95101.0,0.0326]
[1746559180630,0.210311,95102.0,95097.0,0.00157733]
[1746559180631,0.2103198,95098.0,95097.0,0.00157733]
[1746559181530,0.2745198,95098.0,95097.0,0.00157733]
[1746559183033,0.2103442,95087.0,95086.0,0.25925474]
[1746559183234,0.2943442,95087.0,95086.0,0.30925474]
[1746559183538,0.2943442,95087.0,95086.0,0.46595646]
[1746559183730,0.2943442,95087.0,95086.0,0.49865646]
[1746559186233,0.2943442,95087.0,95086.0,0.56898333]
[1746559187238,0.2943442,95087.0,95086.0,0.51898333]
[1746559188240,0.2943442,95087.0,95086.0,0.25972859]
[1746559195836,0.2943442,95087.0,95086.0,0.22862859]
[1746559196032,0.3262442,95087.0,95086.0,0.22862859]
[1746559196339,0.3262442,95087.0,95086.0,0.19732859]
[1746559196545,0.3262442,95087.0,95086.0,0.04062687]
[1746559197347,0.3262442,95087.0,95086.0,0.03852687]
[1746559200347,0.210353,95083.0,95082.0,0.3608]
[1746559201338,0.241353,95083.0,95082.0,0.51822458]
[1746559202039,0.274553,95083.0,95082.0,0.51822458]
[1746559202351,0.210347,95087.0,95086.0,0.2103409]
[1746559202545,0.2103508,95084.0,95083.0,0.095]
[1746559203054,0.2103508,95084.0,95083.0,0.2533653]
[1746559204152,0.2103508,95084.0,95083.0,0.2201653]
[1746559205448,0.0525906,95079.0,95071.0,0.3608]
[1746559205651,0.0525906,95079.0,95075.0,0.00912406]
[1746559205652,0.2103685,95076.0,95075.0,0.00912406]
[1746559205952,0.2103685,95076.0,95075.0,0.16621229]
[1746559206136,0.2103685,95076.0,95075.0,0.15814003]
[1746559206544,0.2741685,95076.0,95075.0,0.0010518]
[1746559208869,0.2103685,95076.0,95075.0,0.0010518]
[1746559209079,0.2941285,95076.0,95075.0,0.2114225]
[1746559209680,0.2941285,95076.0,95075.0,0.0010518]
[1746559210263,0.2103685,95077.0,95076.0,0.2629579]
[1746559210465,0.2940885,95077.0,95076.0,0.2719663]
[1746559210866,0.2940885,95077.0,95076.0,0.43075107]
[1746559211776,0.2970885,95077.0,95076.0,0.43075107]
[1746559211961,0.2970885,95077.0,95076.0,0.62075107]
[1746559212360,0.2133685,95077.0,95076.0,0.62075107]
[1746559215275,0.2133663,95077.0,95076.0,0.62075107]
[1746559220766,0.2133663,95077.0,95076.0,0.60075107]
[1746559224879,0.2133663,95077.0,95076.0,0.43075107]
[1746559225073,0.2775663,95077.0,95076.0,0.43075107]
[1746559226777,0.2775663,95077.0,95076.0,0.15878477]
[1746559226977,0.2775663,95077.0,95076.0,0.19188477]
[1746559231180,0.2775663,95077.0,95076.0,0.15878477]
[1746559231678,0.2103685,95076.0,95075.0,0.00897634]
[1746559232181,0.2732685,95076.0,95075.0,0.00897634]
[1746559234085,0.2732685,95076.0,95075.0,0.0010518]
[1746559234983,0.2742685,95076.0,95075.0,0.0010518]
[1746559236179,0.3577485,95076.0,95075.0,0.0010518]
[1746559256205,0.3576285,95076.0,95075.0,0.0010518]
[1746559270312,0.2742685,95076.0,95075.0,0.0010518]
[1746559270505,0.3260085,95076.0,95075.0,0.0010518]
[1746559271203,0.3260085,95076.0,95075.0,0.0337518]
[1746559272115,0.3580085,95076.0,95075.0,0.0337518]
[1746559272310,0.2747685,95076.0,95075.0,0.0337518]
[1746559272513,0.3579685,95076.0,95075.0,0.0337518]
[1746559274115,0.3259685,95076.0,95075.0,0.0337518]
[1746559274515,0.3259685,95076.0,95075.0,0.0662518]
[1746559276112,0.2113685,95076.0,95075.0,0.2766225]
[1746559276309,0.2113685,95076.0,95075.0,0.43380319]
[1746559277220,0.2103579,95085.0,95084.0,0.2629276]
[1746559277519,0.2103579,95085.0,95084.0,0.571141]
[1746559277715,0.2103579,95085.0,95084.0,0.72842446]
[1746559279017,0.2113579,95085.0,95084.0,0.72842446]
[1746559279317,0.2113579,95085.0,95084.0,0.51808346]
[1746559279819,0.2113579,95085.0,95084.0,0.58098346]
[1746559280418,0.2113579,95085.0,95084.0,0.79133426]
[1746559281715,0.2113579,95085.0,95084.0,0.95133426]
[1746559282021,0.2113579,95085.0,95084.0,0.79133426]
[1746559282513,0.2113579,95085.0,95084.0,0.58098346]
[1746559282711,0.2113579,95085.0,95084.0,0.79133426]
[1746559283922,0.3155035,95095.0,95094.0,0.2103287]
[1746559284218,0.3155035,95095.0,95094.0,0.88891495]
[1746559284219,0.2629201,95095.0,95094.0,0.88891495]
[1746559284822,0.2629201,95095.0,95094.0,0.72891495]
[1746559285016,0.2629201,95095.0,95094.0,0.87891495]
[1746559285226,0.2629201,95095.0,95094.0,0.72891495]
[1746559286221,0.262881,95108.0,95107.0,0.2102977]
[1746559286415,0.262881,95108.0,95107.0,0.5710977]
[1746559287126,0.262881,95108.0,95107.0,0.72799296]
[1746559287325,0.293881,95108.0,95107.0,0.72799296]
[1746559288524,0.293881,95108.0,95107.0,0.52831933]
[1746559288724,0.326781,95108.0,95107.0,0.52831933]
[1746559289025,0.357581,95108.0,95107.0,0.52831933]
[1746559290119,0.535581,95108.0,95107.0,0.52831933]
[1746559291824,0.535581,95108.0,95107.0,0.59091933]
[1746559292226,0.357581,95108.0,95107.0,0.59091933]
[1746559292729,0.357581,95108.0,95107.0,0.80121923]
[1746559293228,0.535581,95108.0,95107.0,0.80121923]
[1746559296438,0.535581,95108.0,95107.0,0.59091933]
[1746559296921,0.535581,95108.0,95107.0,0.55911933]
[1746559300033,0.535581,95108.0,95107.0,0.76941923]
[1746559302327,0.535581,95108.0,95107.0,0.55911933]
[1746559303435,0.535581,95108.0,95107.0,0.76941923]
[1746559306437,0.535581,95108.0,95107.0,0.55911933]
[1746559308641,0.535581,95108.0,95107.0,0.76941923]
[1746559310645,0.535581,95108.0,95107.0,0.55911933]
[1746559313743,0.535581,95108.0,95107.0,0.76941923]
[1746559317245,0.535581,95108.0,95107.0,0.51769526]
[1746559317540,0.535581,95108.0,95107.0,0.15689526]
[1746559317749,0.2103198,95098.0,95097.0,0.08288]
[1746559318248,0.3883198,95098.0,95097.0,0.08288]
[1746559318749,0.4504198,95098.0,95097.0,0.08288]
[1746559322048,0.4504198,95098.0,95097.0,0.11338]
[1746559322449,0.4504198,95098.0,95097.0,0.323702]
[1746559323045,0.4504198,95098.0,95097.0,0.11338]
[1746559323550,0.4504198,95098.0,95097.0,0.323702]
[1746559324446,0.4504198,95098.0,95097.0,0.240822]
[1746559327551,0.4504198,95098.0,95097.0,0.0305]
[1746559327946,0.4504198,95098.0,95097.0,0.240822]
[1746559328552,0.4504198,95098.0,95097.0,0.39953589]
[1746559331552,0.2401,95098.0,95097.0,0.39953589]
[1746559331752,0.178,95098.0,95097.0,0.66469189]
[1746559332147,0.2103119,95102.0,95101.0,0.2103132]
[1746559332448,0.2960791,95106.0,95105.0,0.2103044]
[1746559332755,0.21187572,95109.0,95108.0,0.2102977]
[1746559333155,0.42307572,95109.0,95108.0,0.2102977]
[1746559333458,0.42307572,95109.0,95108.0,0.36777509]
[1746559349475,0.4214976,95109.0,95108.0,0.36777509]
[1746559349860,0.4214976,95109.0,95108.0,0.15747739]
[1746559350070,0.4214976,95109.0,95108.0,0.36777509]
[1746559352171,0.4214976,95109.0,95108.0,0.15747739]
[1746559352376,0.4214976,95109.0,95108.0,0.36777509]
[1746559355276,0.2434976,95109.0,95108.0,0.36777509]
[1746559357279,0.4214976,95109.0,95108.0,0.36777509]
[1746559363583,0.4214976,95109.0,95108.0,0.40077509]
[1746559363882,0.4546976,95109.0,95108.0,0.40077509]
[1746559367690,0.4546976,95109.0,95108.0,0.19047739]
[1746559367885,0.4546976,95109.0,95108.0,0.15747739]
[1746559368387,0.2102999,95107.0,95106.0,0.3608]
[1746559368782,0.2102999,95107.0,95106.0,0.51770418]
[1746559369194,0.3882999,95107.0,95106.0,0.51770418]
[1746559372408,0.3882999,95107.0,95106.0,0.72800628]
[1746559372906,0.3882999,95107.0,95106.0,0.51770418]
[1746559377810,0.3882999,95107.0,95106.0,0.54780418]
[1746559378314,0.3882999,95107.0,95106.0,0.75810628]
[1746559378808,0.3882999,95107.0,95106.0,0.54780418]
[1746559381718,0.3882999,95107.0,95106.0,0.51770418]
[1746559386221,0.3882999,95107.0,95106.0,0.72800628]
[1746559387214,0.2102999,95107.0,95106.0,0.72800628]
[1746559388216,0.2102999,95107.0,95106.0,0.51770418]
[1746559388217,0.3882999,95107.0,95106.0,0.51770418]
[1746559388619,0.3882999,95107.0,95106.0,0.54840418]
[1746559389619,0.3882999,95107.0,95106.0,0.75870628]
[1746559394127,0.2102999,95107.0,95106.0,0.75870628]
[1746559395249,0.2628556,95114.0,95113.0,0.2102845]
[1746559395425,0.3450556,95114.0,95113.0,0.5710845]
[1746559396331,0.3450556,95114.0,95113.0,0.6331845]
[1746559396731,0.2628556,95114.0,95113.0,0.7901881]
[1746559398636,0.2628556,95114.0,95113.0,0.7883881]
[1746559402428,0.2102845,95114.0,95113.0,0.7883881]
[1746559404436,0.2102845,95114.0,95113.0,0.8705081]
[1746559407735,0.2421845,95114.0,95113.0,0.8705081]
[1746559409333,0.2745845,95114.0,95113.0,0.8705081]
[1746559410248,0.2745845,95114.0,95113.0,0.8404081]
[1746559414143,0.4525845,95114.0,95113.0,0.8404081]
[1746559415142,0.2745845,95114.0,95113.0,0.8404081]
[1746559416243,0.4525845,95114.0,95113.0,0.8404081]
[1746559436053,0.4525845,95114.0,95113.0,1.0004081]
[1746559436248,0.0525627,95133.0,95131.0,0.2102447]
[1746559436553,0.2628052,95133.0,95132.0,0.52028909]
[1746559437250,0.2628052,95133.0,95132.0,0.40458931]
[1746559438153,0.2628052,95133.0,95132.0,0.56255056]
[1746559438854,0.2628052,95133.0,95132.0,0.77279526]
[1746559439248,0.2628052,95133.0,95132.0,0.57033459]
[1746559441257,0.2628052,95133.0,95132.0,0.78057929]
[1746559444662,0.0631,95135.0,95134.0,0.2102402]
[1746559444955,0.273338,95135.0,95134.0,0.2102402]
[1746559445160,0.273338,95135.0,95134.0,0.36728917]
[1746559445360,0.273338,95135.0,95134.0,0.39828917]
[1746559449372,0.0631,95135.0,95134.0,0.39828917]
[1746559449574,0.273338,95135.0,95134.0,0.39828917]
[1746559449761,0.001,95136.0,95135.0,0.210238]
[1746559449970,0.001,95136.0,95135.0,0.414438]
[1746559450367,0.001,95136.0,95135.0,0.57215473]
[1746559450567,0.2112358,95136.0,95135.0,0.57215473]
[1746559451068,0.2112358,95136.0,95135.0,0.63215473]
[1746559453868,0.2438358,95136.0,95135.0,0.63215473]
[1746559454077,0.2438358,95136.0,95135.0,0.49215473]
[1746559454372,0.2748358,95136.0,95135.0,0.49215473]
[1746559455375,0.3608,95187.0,95135.0,0.70702873]
[1746559455565,0.2101784,95162.0,95161.0,0.5709806]
[1746559455763,0.2101784,95162.0,95161.0,0.3608]
[1746559456370,0.2101784,95162.0,95161.0,0.51796441]
[1746559456676,0.2101784,95162.0,95161.0,0.72814501]
[1746559456867,0.2740784,95162.0,95161.0,0.72814501]
[1746559457269,0.2740784,95162.0,95161.0,0.73875734]
[1746559459479,0.2740784,95162.0,95161.0,0.76965734]
[1746559467787,0.27424326,95162.0,95161.0,0.76965734]
[1746559471584,0.27424326,95162.0,95161.0,0.52857674]
[1746559471780,0.27424326,95162.0,95161.0,0.51796441]
[1746559471987,0.27424326,95162.0,95161.0,0.3608]
[1746559480880,0.35568326,95162.0,95161.0,0.3608]
[1746559485201,0.27424326,95162.0,95161.0,0.5709806]
[1746559485395,0.35564326,95162.0,95161.0,0.5709806]
[1746559486094,0.35564326,95162.0,95161.0,0.6041806]
[1746559486605,0.27424326,95162.0,95161.0,0.6041806]
[1746559486795,0.35564326,95162.0,95161.0,0.6041806]
[1746559495814,0.35564326,95162.0,95161.0,0.394]
[1746559499511,0.35564326,95162.0,95161.0,0.3608]
[1746559506918,0.38864326,95162.0,95161.0,0.3608]
[1746559509408,0.32424326,95162.0,95161.0,0.3608]
[1746559509714,0.32424326,95162.0,95161.0,0.51903868]
[1746559509908,0.32424326,95162.0,95161.0,0.75971928]
[1746559510111,0.32424326,95162.0,95161.0,0.79111928]
[1746559510611,0.24284326,95162.0,95161.0,0.79111928]
[1746559511914,0.30524326,95162.0,95161.0,0.79111928]
[1746559512913,0.30524326,95162.0,95161.0,0.58093868]
[1746559517614,0.30524326,95162.0,95161.0,0.54953868]
[1746559538220,0.38624326,95162.0,95161.0,0.15823868]
[1746559538627,0.2101938,95155.0,95154.0,0.18720929]
[1746559538930,0.2101938,95155.0,95154.0,0.15700929]
[1746559539333,0.2102027,95151.0,95150.0,0.3608]
[1746559540121,0.2747027,95151.0,95150.0,0.3608]
[1746559540330,0.2747027,95151.0,95150.0,0.51890411]
[1746559559851,0.2747027,95151.0,95150.0,0.72910901]
[1746559560047,0.2426027,95151.0,95150.0,0.76170901]
[1746559560253,0.2102027,95151.0,95150.0,0.82630901]
[1746559570559,0.2417027,95151.0,95150.0,0.82630901]
[1746559570748,0.2417027,95151.0,95150.0,0.79370901]
[1746559571056,0.2742027,95151.0,95150.0,0.79370901]
[1746559571358,0.3067027,95151.0,95150.0,0.79370901]
[1746559571959,0.3067027,95151.0,95150.0,0.76170901]
[1746559572559,0.30685094,95151.0,95150.0,0.76170901]
[1746559575960,0.30685094,95151.0,95150.0,0.40090901]
[1746559576161,0.30685094,95151.0,95150.0,0.76170901]
[1746559578062,0.30685094,95151.0,95150.0,0.51890411]
[1746559578270,0.30685094,95151.0,95150.0,0.72910901]
[1746559579775,0.30685094,95151.0,95150.0,0.51890411]
[1746559583472,0.30685094,95151.0,95150.0,0.15810411]
[1746559583675,0.30685094,95151.0,95150.0,0.51890411]
[1746559585364,0.30685094,95151.0,95150.0,0.72910901]
[1746559585563,0.30685094,95151.0,95150.0,0.51890411]
[1746559586974,0.30685094,95151.0,95150.0,0.72910901]
[1746559587164,0.30685094,95151.0,95150.0,0.51890411]
[1746559587873,0.30685094,95151.0,95150.0,0.72910901]
[1746559597274,0.30685094,95151.0,95150.0,0.51890411]
[1746559597979,0.30685094,95151.0,95150.0,0.72910901]
[1746559598179,0.30685094,95151.0,95150.0,0.76180901]
[1746559598381,0.30685094,95151.0,95150.0,0.55160411]
[1746559598982,0.30685094,95151.0,95150.0,0.76180901]
[1746559601073,0.30685094,95151.0,95150.0,0.55160411]
[1746559601380,0.38753094,95151.0,95150.0,0.55160411]
[1746559602483,0.38753094,95151.0,95150.0,0.76180901]
[1746559603484,0.38753094,95151.0,95150.0,0.55160411]
[1746559606385,0.38753094,95151.0,95150.0,0.76180901]
[1746559610796,0.38753094,95151.0,95150.0,0.55160411]
[1746559611390,0.38753094,95151.0,95150.0,0.76180901]
[1746559613691,0.38753094,95151.0,95150.0,0.55160411]
[1746559617497,0.38753094,95151.0,95150.0,0.19080411]
[1746559617985,0.38753094,95151.0,95150.0,0.15810411]
[1746559618191,0.2102292,95139.0,95138.0,0.3608]
[1746559618887,0.2102292,95139.0,95138.0,0.5710314]
[1746559619082,0.2723292,95139.0,95138.0,0.51853602]
[1746559620998,0.2723292,95139.0,95138.0,0.55073602]
[1746559623399,0.2723292,95139.0,95138.0,0.76096742]
[1746559625301,0.2723292,95139.0,95138.0,0.55073602]
[1746559626397,0.2723292,95139.0,95138.0,0.18993602]
[1746559626996,0.2723292,95139.0,95138.0,0.40016742]
[1746559627793,0.2723292,95139.0,95138.0,0.18993602]
[1746559629595,0.2723292,95139.0,95138.0,0.40016742]
[1746559632104,0.3528092,95139.0,95138.0,0.40016742]
[1746559632604,0.2410292,95139.0,95138.0,0.40016742]
[1746559633099,0.2102292,95139.0,95138.0,0.40016742]
[1746559633601,0.08048,95141.0,95140.0,0.210227]
[1746559633801,0.3746622,95143.0,95142.0,0.2102226]
[1746559634007,0.4272179,95143.0,95142.0,0.2102226]
[1746559634202,0.4272179,95143.0,95142.0,0.36712864]
[1746559634602,0.4272179,95143.0,95142.0,0.39952864]
[1746559634906,0.4272179,95143.0,95142.0,0.42972864]
[1746559635405,0.3958179,95143.0,95142.0,0.42972864]
[1746559635804,0.3153379,95143.0,95142.0,0.42972864]
[1746559636108,0.2102171,95145.0,95144.0,0.2102159]
[1746559636704,0.2102171,95145.0,95144.0,0.36726154]
[1746559637809,0.2420171,95145.0,95144.0,0.36726154]
[1746559640603,0.2102171,95145.0,95144.0,0.36726154]
[1746559641914,0.2429171,95145.0,95144.0,0.36726154]
[1746559642613,0.2758171,95145.0,95144.0,0.36726154]
[1746559643210,0.2758171,95145.0,95144.0,0.15704564]
[1746559643413,0.2758171,95145.0,95144.0,0.36726374]
[1746559643609,0.2758171,95145.0,95144.0,0.15704564]
[1746559644118,0.3283716,95145.0,95144.0,0.2102181]
[1746559644511,0.3283716,95145.0,95144.0,0.36793289]
[1746559649123,0.2429171,95145.0,95144.0,0.36793289]
[1746559649823,0.2429171,95145.0,95144.0,0.39793289]
[1746559651920,0.2429171,95145.0,95144.0,0.75873289]
[1746559653917,0.2429171,95145.0,95144.0,0.79143289]
[1746559654119,0.2429171,95145.0,95144.0,0.93143289]
[1746559654320,0.0525478,95160.0,95144.0,0.73121479]
[1746559654620,0.2949559,95152.0,95151.0,0.2102027]
[1746559654829,0.2949559,95152.0,95151.0,0.3553027]
[1746559655417,0.2424057,95152.0,95151.0,0.512142]
[1746559657030,0.2424057,95152.0,95151.0,0.431742]
[1746559657329,0.2424057,95152.0,95151.0,0.512142]
[1746559657838,0.0322,95152.0,95151.0,0.512142]
[1746559658618,0.2424005,95152.0,95151.0,0.512142]
[1746559661329,0.262747,95154.0,95153.0,0.2101983]
[1746559661626,0.2101936,95156.0,95155.0,0.2101916]
[1746559661824,0.2101936,95156.0,95155.0,0.2724916]
[1746559662026,0.2735936,95156.0,95155.0,0.42986901]
[1746559671537,0.0634,95156.0,95155.0,0.42986901]
[1746559671929,0.2735916,95156.0,95155.0,0.42986901]
[1746559673440,0.0634,95156.0,95155.0,0.42986901]
[1746559673731,0.0634,95156.0,95155.0,0.57986901]
[1746559674036,0.0315,95156.0,95155.0,0.57986901]
[1746559674437,0.0316,95158.0,95157.0,0.2101894]
[1746559674632,0.0316,95158.0,95157.0,0.3501894]
[1746559675532,0.0322,95159.0,95158.0,0.2101872]
[1746559675737,0.0322,95159.0,95158.0,0.4046872]
[1746559675938,0.0322,95159.0,95158.0,0.56214753]
[1746559676333,0.0322,95159.0,95158.0,0.43214753]
[1746559676730,0.0322,95159.0,95158.0,0.44214753]
[1746559678431,0.0322,95159.0,95158.0,0.45214753]
[1746559681839,0.001,95166.0,95159.0,0.052546]
[1746559682041,0.001,95166.0,95165.0,0.5709718]
[1746559682340,0.2111695,95166.0,95165.0,0.86772258]
[1746559682539,0.2111695,95166.0,95165.0,0.72772258]
[1746559683038,0.2111695,95166.0,95165.0,0.75992258]
[1746559683839,0.001,95166.0,95165.0,0.75992258]
[1746559684039,0.001,95166.0,95165.0,0.91992258]
[1746559684242,0.0308,95167.0,95166.0,0.2101695]
[1746559684444,0.0308,95167.0,95166.0,0.3601695]
[1746559684638,0.0308,95167.0,95166.0,0.4231695]
[1746559685041,0.0308,95167.0,95166.0,0.57975887]
[1746559685438,0.0319,95169.0,95168.0,0.2101651]
[1746559685745,0.210146,95177.0,95173.0,0.0525383]
[1746559685933,0.210146,95177.0,95176.0,0.5709475]
[1746559686134,0.2101371,95182.0,95181.0,0.2626628]
[1746559686437,0.2101371,95182.0,95181.0,0.5454702]
[1746559686642,0.2101371,95182.0,95181.0,0.3954702]
[1746559686941,0.2101371,95182.0,95181.0,0.5454702]
[1746559687852,0.2101371,95182.0,95181.0,0.3954702]
[1746559688736,0.2423371,95182.0,95181.0,0.3954702]
[1746559688942,0.2423371,95182.0,95181.0,0.40339494]
[1746559689139,0.0322,95182.0,95181.0,0.53339494]
[1746559689343,0.2101305,95184.0,95183.0,0.2101298]
[1746559689545,0.2101305,95184.0,95183.0,0.3711298]
[1746559689747,0.2423305,95184.0,95183.0,0.52885762]
[1746559690044,0.0322,95184.0,95183.0,0.52885762]
[1746559690246,0.0322,95184.0,95183.0,0.39885762]
[1746559691042,0.0322,95184.0,95183.0,0.55885762]
[1746559691448,0.0322,95184.0,95183.0,0.39885762]
[1746559691744,0.0015,95185.0,95184.0,0.2101298]
[1746559692250,0.0015,95185.0,95184.0,0.40128827]
[1746559693348,0.0015,95185.0,95184.0,0.40228827]
[1746559694547,0.0315,95185.0,95184.0,0.40228827]
[1746559695651,0.0315,95185.0,95184.0,0.55228827]
[1746559697247,0.0315,95185.0,95184.0,0.55128827]
[1746559697849,0.0315,95185.0,95184.0,0.40128827]
[1746559698153,0.2416276,95185.0,95184.0,0.36828827]
[1746559709863,0.2416276,95185.0,95184.0,0.40158827]
[1746559711556,0.2416276,95185.0,95184.0,0.36828827]
[1746559712059,0.2416276,95185.0,95184.0,0.40018827]
[1746559713060,0.0315,95185.0,95184.0,0.40018827]
[1746559713271,0.0315,95185.0,95184.0,0.5556815]
[1746559713465,0.0315,95185.0,95184.0,0.38378537]
[1746559713466,0.2416276,95185.0,95184.0,0.38378537]
[1746559713648,0.2737276,95185.0,95184.0,0.38378537]
[1746559714056,0.2737276,95185.0,95184.0,0.38386705]
[1746559714562,0.3064276,95185.0,95184.0,0.38386705]
[1746559717659,0.3064276,95185.0,95184.0,0.36828827]
[1746559724366,0.30662722,95185.0,95184.0,0.36828827]
[1746559728765,0.30662722,95185.0,95184.0,0.15815847]
[1746559729267,0.210132,95183.0,95182.0,0.2409342]
[1746559729669,0.210132,95183.0,95182.0,0.39764577]
[1746559750099,0.210132,95183.0,95182.0,0.18751157]
[1746559751694,0.210132,95183.0,95182.0,0.39764577]
[1746559753801,0.210132,95183.0,95182.0,0.18751157]